bitfinex-derivatives/quotes_BTCF0:USTF0_20241128
["timestamp","ask_amount","ask_price","bid_price","bid_amount"]
[1732766290844,0.02453238,95575.0,95574.0,0.18787298]
[1732766290845,0.07679738,95575.0,95574.0,0.18787298]
[1732766291241,0.07679738,95575.0,95573.0,0.18787298]
[1732766291544,0.02453238,95574.0,95573.0,0.18787298]
[1732766292238,0.02453238,95574.0,95572.0,0.18787298]
[1732766292545,0.052267,95570.0,95569.0,0.25056487]
[1732766292738,0.052267,95570.0,95562.0,9.592e-05]
[1732766292739,0.38533238,95570.0,95564.0,0.18783592]
[1732766292934,0.052271,95564.0,95562.0,9.592e-05]
[1732766293134,0.24961826,95563.0,95562.0,9.592e-05]
[1732766293347,0.66885447,95563.0,95562.0,9.592e-05]
[1732766293546,0.51269238,95563.0,95562.0,9.592e-05]
[1732766293741,0.51269238,95563.0,95539.0,0.0324]
[1732766293742,0.052283,95541.0,95539.0,0.0324]
[1732766293944,0.02453238,95540.0,95539.0,0.0324]
[1732766294457,0.00943553,95540.0,95539.0,0.0324]
[1732766294657,0.00943553,95540.0,95539.0,0.03251987]
[1732766294859,0.00943553,95540.0,95539.0,0.04874486]
[1732766294860,0.02568296,95540.0,95539.0,0.04874486]
[1732766295247,0.00943553,95540.0,95539.0,0.04874486]
[1732766295864,0.00943553,95540.0,95539.0,0.03851987]
[1732766296158,0.02568296,95540.0,95539.0,0.03851987]
[1732766296459,0.00944675,95540.0,95539.0,0.03851987]
[1732766296757,0.02566828,95540.0,95539.0,0.03851987]
[1732766297463,0.00944675,95540.0,95539.0,0.03851987]
[1732766297658,0.00944675,95540.0,95539.0,0.04251987]
[1732766299864,0.00944675,95540.0,95539.0,0.01011987]
[1732766300358,0.08361933,95541.0,95539.0,0.01011987]
[1732766300359,0.052283,95541.0,95539.0,0.01011987]
[1732766300562,0.0094981,95540.0,95539.0,0.01011987]
[1732766301758,0.1837781,95540.0,95539.0,0.01011987]
[1732766302058,0.19897506,95540.0,95539.0,0.01011987]
[1732766302266,0.19897506,95540.0,95539.0,0.00711987]
[1732766302466,0.19897506,95540.0,95539.0,0.00511987]
[1732766302773,0.19897506,95540.0,95539.0,0.00211987]
[1732766302959,0.19897506,95540.0,95539.0,0.00511987]
[1732766303154,0.02469506,95540.0,95539.0,0.00511987]
[1732766303363,0.0094981,95540.0,95539.0,0.00511987]
[1732766310467,0.00917831,95540.0,95539.0,0.00511987]
[1732766313865,0.0001148,95563.0,95539.0,0.00511987]
[1732766313866,0.052278,95550.0,95539.0,0.39731987]
[1732766314065,0.00847725,95549.0,95540.0,0.11468531]
[1732766314370,0.052278,95550.0,95548.0,0.05228]
[1732766314568,0.052278,95550.0,95549.0,0.0321]
[1732766314769,0.06080804,95550.0,95549.0,0.0321]
[1732766315968,0.052282,95543.0,95541.0,0.052283]
[1732766316267,0.00853004,95542.0,95541.0,0.052283]
[1732766316473,0.052283,95541.0,95539.0,0.00011987]
[1732766316658,0.00853004,95540.0,95539.0,0.05240387]
[1732766317359,0.00863273,95540.0,95539.0,0.05240387]
[1732766318667,0.00863273,95540.0,95539.0,0.00011987]
[1732766318871,0.00863273,95540.0,95539.0,0.00311987]
[1732766319369,0.01663273,95540.0,95539.0,0.00111987]
[1732766320070,0.02063273,95540.0,95539.0,0.00111987]
[1732766321071,0.01263273,95540.0,95539.0,0.00011987]
[1732766321371,0.02163273,95540.0,95539.0,0.00111987]
[1732766321968,0.38443273,95540.0,95539.0,0.00111987]
[1732766322372,0.38443273,95540.0,95539.0,0.00011987]
[1732766322577,0.38443273,95540.0,95539.0,0.00111987]
[1732766323072,0.37543273,95540.0,95539.0,0.00011987]
[1732766323274,0.38543273,95540.0,95539.0,0.00211987]
[1732766323677,0.54081329,95540.0,95539.0,0.00211987]
[1732766324177,0.55710924,95540.0,95539.0,0.00211987]
[1732766324369,0.40172868,95540.0,95539.0,0.00211987]
[1732766325679,0.38643273,95540.0,95539.0,0.00211987]
[1732766326779,0.3778,95540.0,95539.0,0.00211987]
[1732766326983,0.3768,95540.0,95539.0,0.00211987]
[1732766328071,0.3768,95540.0,95539.0,0.00111987]
[1732766328379,0.3768,95540.0,95539.0,0.00211987]
[1732766328784,0.3678,95540.0,95539.0,0.00111987]
[1732766329184,0.3608,95540.0,95539.0,0.00011987]
[1732766329382,0.3688,95540.0,95539.0,0.00111987]
[1732766330387,0.3658,95540.0,95539.0,0.00011987]
[1732766331384,0.3748,95540.0,95539.0,0.00111987]
[1732766331684,0.38321875,95540.0,95539.0,0.00111987]
[1732766331880,0.37421875,95540.0,95539.0,0.00011987]
[1732766332082,0.38321875,95540.0,95539.0,0.00111987]
[1732766332279,0.37821875,95540.0,95539.0,0.00111987]
[1732766332483,0.38421875,95540.0,95539.0,0.00011987]
[1732766332676,0.38421875,95540.0,95539.0,0.00111987]
[1732766332883,0.43650275,95540.0,95539.0,0.00111987]
[1732766333185,0.43050275,95540.0,95539.0,0.00111987]
[1732766333382,0.43650275,95540.0,95539.0,0.00111987]
[1732766333581,0.12512218,95541.0,95539.0,0.67591987]
[1732766333778,0.51618056,95549.0,95548.0,0.05228]
[1732766333779,0.36144,95549.0,95548.0,0.05228]
[1732766333981,0.3608,95560.0,95548.0,0.41308]
[1732766333982,0.51618056,95560.0,95548.0,0.41308]
[1732766334175,0.3608,95560.0,95559.0,0.052273]
[1732766335388,0.3608,95560.0,95559.0,0.053273]
[1732766335389,0.3638,95560.0,95559.0,0.053273]
[1732766336386,0.3638,95560.0,95559.0,0.052273]
[1732766336387,0.3608,95560.0,95559.0,0.052273]
[1732766336586,0.3648,95560.0,95559.0,0.052273]
[1732766336776,0.3678,95560.0,95559.0,0.052273]
[1732766336976,0.3678,95560.0,95559.0,0.06867652]
[1732766337492,0.4615533,95560.0,95559.0,0.06867652]
[1732766337683,0.46155604,95560.0,95559.0,0.06867652]
[1732766338087,0.3678,95560.0,95559.0,0.06867652]
[1732766338487,0.3678,95560.0,95559.0,0.052273]
[1732766338790,0.416073,95560.0,95559.0,0.052273]
[1732766338988,0.50980921,95560.0,95559.0,0.052273]
[1732766339394,0.416073,95560.0,95559.0,0.052273]
[1732766340583,0.416073,95560.0,95554.0,0.18801795]
[1732766340584,0.052276,95555.0,95554.0,0.18801795]
[1732766340789,0.052276,95554.0,95553.0,0.18801795]
[1732766340989,0.052277,95553.0,95552.0,0.052277]
[1732766342587,0.056277,95553.0,95552.0,0.052277]
[1732766342893,0.058277,95553.0,95552.0,0.052277]
[1732766343201,0.052279,95549.0,95548.0,0.3771002]
[1732766343385,0.052279,95549.0,95548.0,0.4293802]
[1732766343791,0.006,95553.0,95552.0,0.052277]
[1732766344089,0.058277,95553.0,95552.0,0.052277]
[1732766344490,0.09573621,95553.0,95552.0,0.052277]
[1732766344684,0.006,95553.0,95552.0,0.052277]
[1732766345088,0.002,95553.0,95552.0,0.052277]
[1732766345288,0.006,95553.0,95552.0,0.052277]
[1732766345494,0.004,95553.0,95552.0,0.052277]
[1732766345692,0.09373621,95558.0,95548.0,0.56567815]
[1732766345897,0.3608,95577.0,95557.0,0.3608]
[1732766346195,0.052258,95587.0,95582.0,0.052261]
[1732766346496,0.37725341,95592.0,95582.0,0.052261]
[1732766346497,0.052256,95591.0,95582.0,0.052261]
[1732766346689,0.53263397,95592.0,95582.0,0.052261]
[1732766346690,0.052259,95586.0,95582.0,0.052261]
[1732766346885,0.53327397,95592.0,95582.0,0.052261]
[1732766347196,0.052263,95579.0,95576.0,0.052264]
[1732766347393,0.3608,95583.0,95572.0,0.052266]
[1732766347394,0.052261,95582.0,95572.0,0.052266]
[1732766347599,0.052262,95581.0,95577.0,0.052264]
[1732766347894,0.052262,95581.0,95578.0,0.052263]
[1732766348503,0.052262,95581.0,95571.0,0.37686037]
[1732766348793,0.052262,95581.0,95579.0,0.052262]
[1732766348993,0.00841902,95580.0,95579.0,0.052262]
[1732766350398,0.00841902,95580.0,95578.0,0.001]
[1732766350399,0.052263,95579.0,95578.0,0.001]
[1732766350713,0.06068202,95579.0,95578.0,0.001]
[1732766351389,0.06068202,95579.0,95577.0,0.052264]
[1732766351584,0.00841902,95578.0,95577.0,0.052264]
[1732766352794,0.01141902,95578.0,95577.0,0.054264]
[1732766353504,0.01141902,95578.0,95577.0,0.001]
[1732766353701,0.01541902,95578.0,95577.0,0.002]
[1732766354200,0.052269,95567.0,95564.0,0.05227]
[1732766354386,0.06077774,95566.0,95564.0,0.05227]
[1732766354586,0.00850774,95565.0,95564.0,0.05227]
[1732766355297,0.00850774,95565.0,95559.0,0.00156952]
[1732766355599,0.052272,95562.0,95559.0,0.05384252]
[1732766355790,0.04010774,95561.0,95559.0,0.05384252]
[1732766356000,0.0316,95561.0,95559.0,0.05384252]
[1732766356296,0.083873,95561.0,95559.0,0.00156952]
[1732766357393,0.033,95560.0,95559.0,0.00156952]
[1732766359092,0.038,95560.0,95559.0,0.00156952]
[1732766359590,0.042,95560.0,95559.0,0.00256952]
[1732766364499,0.094273,95560.0,95559.0,0.00256952]
[1732766365802,0.094273,95560.0,95546.0,0.1875606]
[1732766365803,0.05228,95547.0,95546.0,0.1875606]
[1732766366100,0.052282,95544.0,95543.0,0.06938958]
[1732766367698,0.053282,95544.0,95543.0,0.06938958]
[1732766369106,0.052284,95540.0,95539.0,0.00011987]
[1732766370209,0.052284,95540.0,95539.0,0.00111987]
[1732766370793,0.052284,95540.0,95539.0,0.00211987]
[1732766379101,0.225361,95546.0,95539.0,0.00211987]
[1732766379300,0.225361,95546.0,95545.0,0.052281]
[1732766381306,0.052281,95546.0,95545.0,0.052281]
[1732766382308,0.054281,95546.0,95545.0,0.052281]
[1732766382697,0.054281,95546.0,95545.0,0.06851066]
[1732766383495,0.055281,95546.0,95545.0,0.06851066]
[1732766384897,0.003,95546.0,95543.0,0.18770752]
[1732766385099,0.052283,95542.0,95541.0,0.18770752]
[1732766385301,0.052283,95542.0,95541.0,0.052283]
[1732766387304,0.052284,95540.0,95539.0,0.00011987]
[1732766389303,0.052284,95540.0,95539.0,0.00111987]
[1732766390212,0.052284,95540.0,95539.0,0.00211987]
[1732766390915,0.20766456,95540.0,95539.0,0.00211987]
[1732766391210,0.20861087,95540.0,95539.0,0.00211987]
[1732766391601,0.052284,95540.0,95539.0,0.00211987]
[1732766391815,0.20860287,95540.0,95539.0,0.00211987]
[1732766392002,0.052284,95540.0,95539.0,0.00211987]
[1732766392811,0.20861033,95540.0,95539.0,0.00211987]
[1732766393008,0.052284,95540.0,95539.0,0.00211987]
[1732766393607,0.20861742,95540.0,95539.0,0.00211987]
[1732766394105,0.10314598,95540.0,95539.0,0.00211987]
[1732766394307,0.10314598,95540.0,95519.0,0.052295]
[1732766394308,0.052284,95539.0,95519.0,0.18789738]
[1732766394504,0.3608,95520.0,95515.0,0.18789738]
[1732766394704,0.3608,95520.0,95513.0,0.18789738]
[1732766394705,0.052298,95514.0,95513.0,0.18789738]
[1732766395199,0.052298,95514.0,95513.0,0.00011654]
[1732766395707,0.17736153,95514.0,95513.0,0.00011654]
[1732766396305,0.052298,95514.0,95513.0,0.00011654]
[1732766397006,0.06911877,95514.0,95513.0,0.00011654]
[1732766397502,0.2248823,95514.0,95513.0,0.00011654]
[1732766398310,0.09981877,95514.0,95513.0,0.00011654]
[1732766398908,0.225418,95514.0,95513.0,0.00011654]
[1732766399412,0.3608,95516.0,95514.0,0.052298]
[1732766399612,0.3608,95516.0,95513.0,0.00011654]
[1732766399813,0.052298,95514.0,95513.0,0.00011654]
[1732766400306,0.3608,95516.0,95514.0,0.052298]
[1732766400715,0.3608,95516.0,95515.0,0.0303]
[1732766402313,0.00010186,95528.0,95515.0,0.082598]
[1732766402616,0.052293,95524.0,95523.0,0.052293]
[1732766403413,0.00010186,95528.0,95517.0,0.18789738]
[1732766403721,0.00010186,95528.0,95515.0,0.04714051]
[1732766403722,0.052296,95521.0,95520.0,0.052295]
[1732766404315,0.00110186,95528.0,95527.0,0.052291]
[1732766405217,0.3608,95539.0,95527.0,0.052291]
[1732766405513,0.3608,95539.0,95538.0,0.052285]
[1732766406417,0.3618,95539.0,95538.0,0.052285]
[1732766407116,0.3608,95539.0,95538.0,0.052285]
[1732766407324,0.3608,95539.0,95538.0,0.054285]
[1732766408718,0.3608,95539.0,95538.0,0.053285]
[1732766408918,0.3608,95539.0,95538.0,0.052285]
[1732766408919,0.3638,95539.0,95538.0,0.052285]
[1732766409115,0.3678,95539.0,95538.0,0.052285]
[1732766409517,0.3638,95539.0,95538.0,0.052285]
[1732766409721,0.3608,95539.0,95538.0,0.052285]
[1732766410419,0.3608,95539.0,95538.0,0.23984751]
[1732766410420,0.3648,95539.0,95538.0,0.23984751]
[1732766410810,0.3648,95539.0,95538.0,0.052285]
[1732766411109,0.3648,95539.0,95538.0,0.0689918]
[1732766412019,0.001,95539.0,95538.0,0.0689918]
[1732766412213,0.003,95539.0,95538.0,0.0689918]
[1732766412409,0.004,95539.0,95538.0,0.0689918]
[1732766412814,0.004,95539.0,95538.0,0.07879929]
[1732766413020,8.889e-05,95552.0,95538.0,0.39422329]
[1732766413226,8.889e-05,95552.0,95551.0,0.413078]
[1732766413611,8.889e-05,95552.0,95551.0,0.727038]
[1732766414317,8.889e-05,95552.0,95551.0,0.91455486]
[1732766414515,8.889e-05,95552.0,95551.0,0.727038]
[1732766415106,8.889e-05,95552.0,95551.0,0.413078]
[1732766415818,0.00808889,95552.0,95551.0,0.72712386]
[1732766416120,0.00808889,95552.0,95551.0,0.97714634]
[1732766416316,0.00808889,95552.0,95551.0,0.41316386]
[1732766417116,0.00808889,95552.0,95551.0,0.42988144]
[1732766417619,0.00608889,95552.0,95551.0,0.42988144]
[1732766418723,0.00108889,95552.0,95551.0,0.42988144]
[1732766419015,0.00408889,95552.0,95551.0,0.42988144]
[1732766421021,0.00408889,95552.0,95551.0,0.60248144]
[1732766422021,0.00408889,95552.0,95551.0,0.91644144]
[1732766422625,0.00408889,95552.0,95551.0,0.93736105]
[1732766423826,0.00408889,95552.0,95551.0,0.62340105]
[1732766424520,0.00308889,95552.0,95551.0,0.62340105]
[1732766424727,0.00308889,95552.0,95551.0,0.93736105]
[1732766427328,0.00308889,95552.0,95551.0,0.95060647]
[1732766427529,0.00308889,95552.0,95551.0,0.39084886]
[1732766427720,0.00308889,95552.0,95551.0,0.01333128]
[1732766428033,0.09868889,95552.0,95551.0,8.586e-05]
[1732766429331,0.09868889,95552.0,95551.0,0.36088586]
[1732766429332,0.10717139,95552.0,95551.0,0.36088586]
[1732766429524,0.01157139,95552.0,95551.0,0.41316386]
[1732766431320,0.0084825,95552.0,95551.0,0.41316386]
[1732766431526,0.3608,95564.0,95553.0,0.052277]
[1732766431527,0.35084139,95564.0,95553.0,0.052277]
[1732766431835,0.35084139,95564.0,95556.0,0.18736732]
[1732766432628,0.35084139,95564.0,95558.0,0.18736732]
[1732766432927,0.35584139,95564.0,95556.0,0.18736732]
[1732766433427,0.35384139,95564.0,95557.0,0.18736732]
[1732766433734,0.35584139,95564.0,95558.0,0.18736732]
[1732766433937,0.052272,95562.0,95558.0,0.18736732]
[1732766434629,0.052272,95562.0,95559.0,0.18736732]
[1732766434834,0.052272,95562.0,95558.0,0.18736732]
[1732766435035,0.052272,95562.0,95553.0,0.238997]
[1732766435036,0.053272,95562.0,95557.0,0.18736732]
[1732766435226,0.053272,95562.0,95558.0,0.18736732]
[1732766435227,0.052273,95560.0,95558.0,0.18736732]
[1732766435627,0.052273,95560.0,95553.0,0.43618248]
[1732766435628,0.052275,95557.0,95554.0,0.18736732]
[1732766436032,0.052275,95557.0,95554.0,0.3608]
[1732766436426,0.052275,95557.0,95554.0,0.54816732]
[1732766436631,0.003,95560.0,95555.0,0.18736732]
[1732766436836,0.003,95560.0,95556.0,0.18736732]
[1732766437135,0.052271,95565.0,95557.0,0.18736732]
[1732766437533,0.052271,95565.0,95554.0,0.3608]
[1732766437534,0.003,95562.0,95558.0,0.18736732]
[1732766437838,0.003,95562.0,95560.0,0.25002248]
[1732766438031,0.0959,95568.0,95560.0,0.052273]
[1732766438333,0.0959,95568.0,95565.0,0.25033303]
[1732766439636,0.0959,95568.0,95567.0,0.25033303]
[1732766440033,0.0959,95568.0,95566.0,0.25033303]
[1732766440229,0.0959,95568.0,95564.0,0.3608]
[1732766440230,0.0989,95568.0,95567.0,0.25033303]
[1732766440632,0.0989,95568.0,95564.0,0.3608]
[1732766441029,0.1019,95568.0,95565.0,0.001]
[1732766441639,0.0989,95568.0,95564.0,0.37698811]
[1732766441842,0.1019,95568.0,95567.0,0.052269]
[1732766442337,0.0989,95568.0,95567.0,0.052269]
[1732766442538,0.1019,95568.0,95567.0,0.052269]
[1732766443128,0.1019,95568.0,95567.0,0.053269]
[1732766446036,0.006,95568.0,95567.0,0.053269]
[1732766446237,0.006,95568.0,95567.0,0.42246927]
[1732766448541,0.006,95568.0,95567.0,0.73638927]
[1732766448743,0.006,95568.0,95567.0,1.09718927]
[1732766450843,0.006,95568.0,95567.0,1.09665462]
[1732766451541,0.006,95568.0,95567.0,0.96249462]
[1732766451749,0.0332,95578.0,95576.0,0.052264]
[1732766451950,0.0319,95581.0,95576.0,0.052264]
[1732766452151,0.084161,95581.0,95579.0,0.18769749]
[1732766452653,0.052263,95579.0,95576.0,0.052264]
[1732766453548,0.0349,95581.0,95576.0,0.052264]
[1732766453853,0.052264,95576.0,95575.0,0.3608]
[1732766454050,0.0349,95581.0,95571.0,0.18767668]
[1732766454350,0.052266,95573.0,95571.0,0.18767668]
[1732766454550,0.0313,95572.0,95571.0,0.18767668]
[1732766455048,0.00042401,95585.0,95571.0,0.18767668]
[1732766455252,0.00042401,95585.0,95579.0,0.3608]
[1732766455453,0.052264,95577.0,95570.0,0.13877668]
[1732766455658,0.3608,95580.0,95566.0,0.25026342]
[1732766455659,0.3608,95571.0,95566.0,0.25026342]
[1732766455948,0.3608,95571.0,95540.0,0.0307]
[1732766455949,0.052275,95558.0,95552.0,0.3608]
[1732766456152,0.00843225,95570.0,95552.0,0.3608]
[1732766456153,0.06070725,95557.0,95552.0,0.3608]
[1732766456356,0.00042401,95570.0,95552.0,0.3608]
[1732766456357,0.052277,95553.0,95552.0,0.3608]
[1732766456649,0.31396,95552.0,95542.0,0.3608]
[1732766456851,0.052282,95544.0,95542.0,0.3608]
[1732766457052,0.052282,95544.0,95533.0,0.3608]
[1732766457053,0.052286,95537.0,95533.0,0.3608]
[1732766457248,0.03074918,95536.0,95533.0,0.3608]
[1732766457446,0.57030401,95553.0,95533.0,0.3608]
[1732766457447,0.08303618,95535.0,95533.0,0.3608]
[1732766457650,0.052287,95535.0,95534.0,8.281e-05]
[1732766457845,0.08502754,95535.0,95534.0,8.281e-05]
[1732766458862,0.07848817,95535.0,95534.0,8.281e-05]
[1732766459051,0.28756817,95535.0,95534.0,8.281e-05]
[1732766459247,0.28756817,95535.0,95534.0,0.00408281]
[1732766459751,1.26240817,95535.0,95512.0,0.3608]
[1732766459950,0.052293,95524.0,95512.0,0.3608]
[1732766460145,0.07849417,95524.0,95512.0,0.3608]
[1732766460362,0.39253417,95524.0,95512.0,0.3608]
[1732766460565,0.052299,95513.0,95512.0,0.3608]
[1732766460859,0.052299,95513.0,95500.0,0.3934]
[1732766460860,0.052305,95502.0,95500.0,0.3608]
[1732766461058,0.052305,95502.0,95501.0,0.00011208]
[1732766463163,0.052305,95502.0,95501.0,0.00711208]
[1732766463854,0.261465,95502.0,95501.0,0.00711208]
[1732766464054,0.261465,95502.0,95501.0,0.01311208]
[1732766464857,0.261465,95502.0,95501.0,0.00911208]
[1732766465252,0.26154619,95502.0,95501.0,0.00911208]
[1732766465558,0.26154619,95502.0,95501.0,0.00211208]
[1732766466262,0.26154619,95502.0,95501.0,0.00011208]
[1732766466458,0.26354619,95502.0,95501.0,0.00011208]
[1732766466651,0.28405308,95502.0,95501.0,0.00011208]
[1732766468055,0.28409308,95502.0,95501.0,0.00011208]
[1732766468458,0.05232,95474.0,95473.0,0.3608]
[1732766468959,0.05232,95474.0,95473.0,0.36122401]
[1732766469661,0.05232,95474.0,95473.0,0.36133184]
[1732766469855,0.05232,95474.0,95473.0,0.37533184]
[1732766469856,0.05332,95474.0,95473.0,0.37533184]
[1732766470360,0.05332,95474.0,95473.0,0.36733184]
[1732766470566,0.06146885,95474.0,95473.0,0.36633184]
[1732766470866,0.06146885,95474.0,95473.0,0.37090783]
[1732766471662,0.00914885,95474.0,95473.0,0.37133184]
[1732766472260,0.02083171,95485.0,95473.0,0.37133184]
[1732766472261,0.01962856,95485.0,95473.0,0.37133184]
[1732766472457,0.052317,95480.0,95474.0,0.00042401]
[1732766472769,0.052319,95476.0,95474.0,0.00042401]
[1732766472968,0.3608,95486.0,95473.0,0.37090783]
[1732766472969,0.05232,95474.0,95473.0,0.37090783]
[1732766473360,0.05232,95474.0,95473.0,0.36590783]
[1732766473658,0.05232,95474.0,95466.0,0.0309]
[1732766473659,0.02118208,95474.0,95466.0,0.0309]
[1732766473863,0.052328,95459.0,95454.0,0.0328]
[1732766474062,0.07351008,95459.0,95455.0,0.0302]
[1732766474265,0.07351008,95459.0,95458.0,0.36122401]
[1732766474770,0.07351008,95459.0,95458.0,0.36133559]
[1732766475771,0.62572558,95459.0,95458.0,0.36091158]
[1732766475964,0.62572558,95459.0,95458.0,0.00111158]
[1732766476169,0.31144558,95459.0,95458.0,0.00111158]
[1732766476373,0.2902635,95459.0,95458.0,0.00211158]
[1732766476566,0.31372344,95459.0,95458.0,0.00211158]
[1732766476766,0.98880344,95459.0,95458.0,0.00211158]
[1732766477568,0.67452344,95459.0,95458.0,0.00211158]
[1732766478673,0.45708344,95459.0,95458.0,0.00211158]
[1732766478865,0.67456344,95459.0,95458.0,0.00211158]
[1732766479070,0.67556344,95459.0,95458.0,0.01011158]
[1732766479580,0.67556344,95459.0,95458.0,0.00911158]
[1732766479876,0.46091596,95459.0,95458.0,0.00911158]
[1732766480071,0.46091596,95459.0,95442.0,0.3608]
[1732766480072,0.052337,95443.0,95442.0,0.3608]
[1732766480373,0.07562946,95443.0,95442.0,0.3608]
[1732766480672,0.07562946,95443.0,95442.0,0.00042401]
[1732766480869,0.05234,95438.0,95431.0,0.41237882]
[1732766481070,0.07563246,95438.0,95437.0,0.03174454]
[1732766481670,0.052343,95432.0,95431.0,0.3922]
[1732766481971,0.07563546,95432.0,95431.0,0.3922]
[1732766482873,0.07563546,95432.0,95431.0,0.33327834]
[1732766482874,0.10308202,95432.0,95431.0,0.33327834]
[1732766483177,0.00064,95441.0,95431.0,0.33327834]
[1732766483373,0.009,95443.0,95440.0,0.3608]
[1732766483574,0.052336,95445.0,95440.0,0.3608]
[1732766483967,0.057338,95443.0,95440.0,0.3608]
[1732766484174,0.01051504,95442.0,95440.0,0.3608]
[1732766484379,0.052343,95433.0,95431.0,0.35533596]
[1732766484586,0.01051504,95432.0,95431.0,0.35533596]
[1732766485676,0.01051504,95432.0,95431.0,0.33427834]
[1732766485979,0.0379616,95432.0,95431.0,0.33427834]
[1732766486481,0.0379616,95432.0,95431.0,0.33327834]
[1732766486679,0.03810924,95432.0,95431.0,0.33327834]
[1732766486876,0.01066268,95432.0,95431.0,0.33327834]
[1732766487073,0.01966268,95432.0,95431.0,0.33427834]
[1732766487576,0.02466268,95432.0,95431.0,0.33427834]
[1732766487783,0.02466268,95432.0,95431.0,0.001]
[1732766488183,0.052344,95431.0,95425.0,0.0622]
[1732766488480,0.01066268,95430.0,95425.0,0.0622]
[1732766488669,0.052346,95426.0,95425.0,0.0622]
[1732766488876,0.06300868,95426.0,95425.0,0.03863083]
[1732766490075,0.052346,95426.0,95425.0,0.03863083]
[1732766490380,0.06186845,95426.0,95425.0,0.03863083]
[1732766490576,0.07086845,95426.0,95425.0,0.03963083]
[1732766490777,0.07586845,95426.0,95425.0,0.03963083]
[1732766493296,0.09032073,95426.0,95425.0,0.03963083]
[1732766493674,0.08982973,95426.0,95425.0,0.03963083]
[1732766493879,0.0753782,95426.0,95425.0,0.03963083]
[1732766494081,0.07518785,95426.0,95425.0,0.03963083]
[1732766496084,0.07518785,95426.0,95425.0,0.0325]
[1732766496388,0.07518785,95426.0,95425.0,0.001]
[1732766497486,0.09614513,95426.0,95425.0,0.001]
[1732766497681,0.09614513,95426.0,95425.0,9.254e-05]
[1732766498192,0.052353,95413.0,95412.0,0.0325]
[1732766498485,0.066346,95426.0,95425.0,0.001]
[1732766498685,0.07510774,95426.0,95425.0,0.001]
[1732766498886,0.08952755,95426.0,95425.0,0.001]
[1732766499092,0.09252755,95426.0,95425.0,0.002]
[1732766499683,0.00012268,95432.0,95425.0,0.002]
[1732766499882,0.20408,95451.0,95431.0,0.413144]
[1732766500181,0.0325,95456.0,95431.0,0.413144]
[1732766500182,0.052335,95447.0,95445.0,0.3608]
[1732766500992,0.052335,95447.0,95446.0,8.646e-05]
[1732766501783,0.053335,95447.0,95446.0,8.646e-05]
[1732766502389,0.054335,95447.0,95446.0,8.646e-05]
[1732766503195,0.053335,95447.0,95446.0,8.646e-05]
[1732766503387,0.056335,95447.0,95446.0,8.646e-05]
[1732766503584,0.062335,95447.0,95446.0,0.00108646]
[1732766504098,0.376655,95447.0,95446.0,0.00108646]
[1732766504398,0.378655,95447.0,95446.0,0.00108646]
[1732766504890,0.064335,95447.0,95446.0,0.001]
[1732766505095,0.378655,95447.0,95446.0,0.001]
[1732766505294,0.39910067,95447.0,95446.0,0.001]
[1732766505794,0.40310067,95447.0,95446.0,0.002]
[1732766506489,0.45401159,95447.0,95446.0,0.002]
[1732766506690,0.40310067,95447.0,95446.0,0.002]
[1732766506893,0.55933402,95447.0,95446.0,0.002]
[1732766507097,0.39910067,95447.0,95446.0,0.002]
[1732766507491,0.40010067,95447.0,95446.0,0.002]
[1732766507692,0.272815,95447.0,95446.0,0.001]
[1732766507891,0.065335,95447.0,95446.0,0.002]
[1732766509099,0.065335,95447.0,95446.0,0.007]
[1732766509100,0.058335,95447.0,95446.0,0.007]
[1732766509788,0.057335,95447.0,95446.0,0.001]
[1732766509990,0.277815,95447.0,95446.0,0.002]
[1732766510385,0.281815,95447.0,95446.0,0.002]
[1732766510592,0.069335,95447.0,95446.0,0.002]
[1732766512392,0.068335,95447.0,95446.0,0.002]
[1732766513099,0.068335,95447.0,95446.0,0.001]
[1732766513100,0.061335,95447.0,95446.0,0.001]
[1732766513304,0.061335,95447.0,95420.0,0.25026342]
[1732766513305,0.052349,95421.0,95420.0,0.25026342]
[1732766513500,0.052336,95445.0,95418.0,0.02011737]
[1732766513501,0.05235,95420.0,95418.0,0.02011737]
[1732766513796,0.21248,95430.0,95413.0,0.052353]
[1732766513995,0.21248,95430.0,95417.0,0.3608]
[1732766513996,0.052349,95421.0,95417.0,0.3608]
[1732766514187,0.04172089,95429.0,95417.0,0.3608]
[1732766514188,0.00842089,95420.0,95417.0,0.3608]
[1732766514387,0.15450921,95419.0,95417.0,0.3608]
[1732766514704,0.00842281,95418.0,95417.0,0.3608]
[1732766514899,0.05235,95419.0,95417.0,0.3608]
[1732766515591,0.05235,95419.0,95417.0,0.3618]
[1732766515997,0.00854115,95418.0,95417.0,0.3618]
[1732766516999,0.07383763,95419.0,95417.0,0.001]
[1732766517187,0.07383763,95419.0,95408.0,0.3932]
[1732766517188,0.052354,95413.0,95408.0,0.3932]
[1732766517393,0.09373061,95409.0,95408.0,0.3932]
[1732766517594,0.12497193,95412.0,95408.0,0.3932]
[1732766517797,0.052354,95413.0,95408.0,0.3932]
[1732766517798,0.09372992,95409.0,95408.0,0.3932]
[1732766518397,0.09372992,95410.0,95408.0,0.41417367]
[1732766518603,0.09372992,95409.0,95408.0,0.41417367]
[1732766518996,0.14608492,95410.0,95408.0,0.41417367]
[1732766519195,0.14608492,95410.0,95408.0,0.3932]
[1732766519501,0.12497193,95414.0,95408.0,0.052356]
[1732766519700,0.02148763,95419.0,95411.0,0.052355]
[1732766519701,0.09369748,95412.0,95411.0,0.052355]
[1732766520598,0.12497193,95416.0,95411.0,0.052355]
[1732766520796,0.12497193,95416.0,95415.0,0.052352]
[1732766521000,0.09369749,95423.0,95415.0,0.3608]
[1732766521202,0.09369749,95423.0,95422.0,0.052349]
[1732766521402,0.09369749,95427.0,95425.0,0.052347]
[1732766521601,0.09369749,95427.0,95426.0,0.0311]
[1732766521796,0.09370331,95431.0,95429.0,0.052345]
[1732766521991,0.09370331,95437.0,95426.0,0.0311]
[1732766522301,0.21252,95440.0,95437.0,0.05234]
[1732766522302,0.44004,95439.0,95437.0,0.05234]
[1732766522600,0.15621491,95449.0,95433.0,0.3608]
[1732766522601,0.09370331,95443.0,95433.0,0.3608]
[1732766523003,0.09370331,95443.0,95434.0,0.052342]
[1732766523336,0.052339,95440.0,95439.0,0.052339]
[1732766523603,0.052341,95436.0,95433.0,0.3608]
[1732766523992,0.052342,95435.0,95433.0,0.3608]